[Event "Titled Tuesday Blitz March 07 Late 2023"]
[White "mohsengabr2002"]
[Black "Prydun, Andriy"]
[BlackFideId "14145898"]
[WhiteElo "2312"]
[BlackElo "2164"]
[Result "0-1"]
[Round "05"]
[TimeControl "180+2"]
[Date "2023.03.07"]
[WhiteClock "0:00:41"]
[BlackClock "0:00:07"]

1. g3 {[%clk 0:03:00]}  f6 {[%clk 0:02:58]} 2. f3 {[%clk 0:03:00]}  Nh6 {[%clk 0:02:56]} 3. e3 {[%clk 0:03:00]}  Nf7 {[%clk 0:02:56]} 4. d3 {[%clk 0:03:01]}  e6 {[%clk 0:02:55]} 5. Nh3 {[%clk 0:03:00]}  Nc6 {[%clk 0:02:55]} 6. Nf2 {[%clk 0:03:01]}  Ne7 {[%clk 0:02:55]} 7. Bg2 {[%clk 0:03:02]}  g6 {[%clk 0:02:53]} 8. O-O {[%clk 0:03:02]}  Bg7 {[%clk 0:02:53]} 9. d4 {[%clk 0:03:02]}  d6 {[%clk 0:02:52]} 10. e4 {[%clk 0:03:02]}  Bd7 {[%clk 0:02:52]} 11. f4 {[%clk 0:03:02]}  Bc6 {[%clk 0:02:49]} 12. c4 {[%clk 0:03:01]}  O-O {[%clk 0:02:48]} 13. d5 {[%clk 0:03:00]}  Bd7 {[%clk 0:02:48]} 14. Nc3 {[%clk 0:02:49]}  e5 {[%clk 0:02:37]} 15. Be3 {[%clk 0:02:46]}  b6 {[%clk 0:02:31]} 16. Qd2 {[%clk 0:02:45]}  f5 {[%clk 0:02:27]} 17. b4 {[%clk 0:02:33]}  a5 {[%clk 0:02:19]} 18. a3 {[%clk 0:02:29]}  axb4 {[%clk 0:02:17]} 19. axb4 {[%clk 0:02:29]}  Rxa1 {[%clk 0:02:17]} 20. Rxa1 {[%clk 0:02:30]}  fxe4 {[%clk 0:02:17]} 21. Nfxe4 {[%clk 0:02:14]}  Nf5 {[%clk 0:02:17]} 22. c5 {[%clk 0:02:02]}  Nxe3 {[%clk 0:02:06]} 23. Qxe3 {[%clk 0:02:02]}  exf4 {[%clk 0:02:07]} 24. gxf4 {[%clk 0:02:00]}  Bf5 {[%clk 0:01:53]} 25. cxb6 {[%clk 0:01:57]}  cxb6 {[%clk 0:01:52]} 26. Ra6 {[%clk 0:01:45]}  Re8 {[%clk 0:01:14]} 27. Qxb6 {[%clk 0:01:44]}  Qxb6+ {[%clk 0:01:13]} 28. Rxb6 {[%clk 0:01:44]}  Bd4+ {[%clk 0:01:13]} 29. Kf1 {[%clk 0:01:40]}  Bxb6 {[%clk 0:01:13]} 30. Nf6+ {[%clk 0:01:40]}  Kf8 {[%clk 0:01:10]} 31. Nxe8 {[%clk 0:01:40]}  Kxe8 {[%clk 0:01:11]} 32. Ke2 {[%clk 0:01:32]}  Kd7 {[%clk 0:00:44]} 33. Be4 {[%clk 0:01:25]}  Nh6 {[%clk 0:00:43]} 34. Bf3 {[%clk 0:01:24]}  Ng8 {[%clk 0:00:42]} 35. Be4 {[%clk 0:01:24]}  Nf6 {[%clk 0:00:40]} 36. Bxf5+ {[%clk 0:01:22]}  gxf5 {[%clk 0:00:41]} 37. Kd3 {[%clk 0:01:22]}  Ng4 {[%clk 0:00:38]} 38. h4 {[%clk 0:01:20]}  h5 {[%clk 0:00:36]} 39. Ne2 {[%clk 0:01:19]}  Bf2 {[%clk 0:00:36]} 40. b5 {[%clk 0:01:05]}  Kc7 {[%clk 0:00:35]} 41. Kc4 {[%clk 0:01:02]}  Bxh4 {[%clk 0:00:35]} 42. Nd4 {[%clk 0:01:01]}  Nh6 {[%clk 0:00:30]} 43. Ne6+ {[%clk 0:00:59]}  Kb6 {[%clk 0:00:28]} 44. Ng7 {[%clk 0:01:00]}  Bg3 {[%clk 0:00:11]} 45. Nxh5 {[%clk 0:01:00]}  Bh2 {[%clk 0:00:12]} 46. Kb4 {[%clk 0:00:56]}  Ng4 {[%clk 0:00:11]} 47. Ng7 {[%clk 0:00:55]}  Ne3 {[%clk 0:00:11]} 48. Nh5 {[%clk 0:00:50]}  Nxd5+ {[%clk 0:00:11]} 49. Kc4 {[%clk 0:00:49]}  Nxf4 {[%clk 0:00:11]} 50. Ng7 {[%clk 0:00:49]}  d5+ {[%clk 0:00:07]} 51. Kb3 {[%clk 0:00:47]}  Kxb5 {[%clk 0:00:06]} 52. Nxf5 {[%clk 0:00:47]}  Bg1 {[%clk 0:00:06]} 53. Kc3 {[%clk 0:00:45]}  Ne6 {[%clk 0:00:06]} 54. Kd3 {[%clk 0:00:41]}  Bf2 {[%clk 0:00:06]} 55. Ne7 {[%clk 0:00:39]}  Kc5 {[%clk 0:00:05]} 56. Nxd5 {[%clk 0:00:39]}  Kxd5 {[%clk 0:00:05]} 57. Ke2 {[%clk 0:00:39]}  Bd4 {[%clk 0:00:05]} 58. Kd3 {[%clk 0:00:40]}  Nf4+ {[%clk 0:00:06]} 59. Kd2 {[%clk 0:00:40]}  Ke4 {[%clk 0:00:06]} 60. Kc2 {[%clk 0:00:40]}  Kd5 {[%clk 0:00:05]} 61. Kd2 {[%clk 0:00:40]}  Kc4 {[%clk 0:00:05]} 62. Kc2 {[%clk 0:00:40]}  Be3 {[%clk 0:00:05]} 63. Kb2 {[%clk 0:00:40]}  Kb4 {[%clk 0:00:04]} 64. Kc2 {[%clk 0:00:40]}  Kc4 {[%clk 0:00:04]} 65. Kb2 {[%clk 0:00:40]}  Bc5 {[%clk 0:00:04]} 66. Kc2 {[%clk 0:00:40]}  Bb4 {[%clk 0:00:05]} 67. Kb2 {[%clk 0:00:39]}  Nd5 {[%clk 0:00:04]} 68. Kc2 {[%clk 0:00:39]}  Ne3+ {[%clk 0:00:05]} 69. Kb2 {[%clk 0:00:38]}  Nf1 {[%clk 0:00:03]} 70. Kc2 {[%clk 0:00:37]}  Ne3+ {[%clk 0:00:04]} 71. Kb2 {[%clk 0:00:38]}  Bc5 {[%clk 0:00:03]} 72. Ka2 {[%clk 0:00:36]}  Kc3 {[%clk 0:00:03]} 73. Kb1 {[%clk 0:00:37]}  Kb3 {[%clk 0:00:03]} 74. Kc1 {[%clk 0:00:37]}  Bb4 {[%clk 0:00:04]} 75. Kb1 {[%clk 0:00:37]}  Bd2 {[%clk 0:00:04]} 76. Ka1 {[%clk 0:00:37]}  Nc4 {[%clk 0:00:05]} 77. Kb1 {[%clk 0:00:37]}  Nb6 {[%clk 0:00:05]} 78. Ka1 {[%clk 0:00:37]}  Bc1 {[%clk 0:00:06]} 79. Kb1 {[%clk 0:00:37]}  Ba3 {[%clk 0:00:07]} 80. Ka1 {[%clk 0:00:37]}  Na4 {[%clk 0:00:07]} 81. Kb1 {[%clk 0:00:38]}  Nb6 {[%clk 0:00:05]} 82. Ka1 {[%clk 0:00:38]}  Nd5 {[%clk 0:00:05]} 83. Kb1 {[%clk 0:00:39]}  Nf4 {[%clk 0:00:05]} 84. Ka1 {[%clk 0:00:39]}  Ng2 {[%clk 0:00:05]} 85. Kb1 {[%clk 0:00:40]}  Ne3 {[%clk 0:00:05]} 86. Ka1 {[%clk 0:00:40]}  Nc4 {[%clk 0:00:06]} 87. Kb1 {[%clk 0:00:41]}  Nd2+ {[%clk 0:00:06]} 88. Ka1 {[%clk 0:00:41]}  Bb2# {[%clk 0:00:07]} 0-1


[Site "https://www.chess.com"]

[Event "Titled Tuesday Blitz March 07 Late 2023"]
[White "Skaric, Djuro"]
[Black "Yeritsyan, Hayk"]
[WhiteFideId "934569"]
[BlackFideId "13307320"]
[WhiteElo "2282"]
[BlackElo "2445"]
[Result "0-1"]
[Round "05"]
[TimeControl "180+2"]
[Date "2023.03.07"]
[WhiteClock "0:01:03"]
[BlackClock "0:00:16"]

1. g3 {[%clk 0:03:00]}  d5 {[%clk 0:02:27]} 2. Bg2 {[%clk 0:02:58]}  c6 {[%clk 0:02:28]} 3. d3 {[%clk 0:02:58]}  Nf6 {[%clk 0:02:29]} 4. Nf3 {[%clk 0:02:58]}  Bf5 {[%clk 0:02:29]} 5. O-O {[%clk 0:02:59]}  h6 {[%clk 0:02:30]} 6. Nc3 {[%clk 0:02:59]}  e6 {[%clk 0:02:31]} 7. h3 {[%clk 0:03:00]}  Be7 {[%clk 0:02:31]} 8. Ne5 {[%clk 0:02:59]}  O-O {[%clk 0:02:32]} 9. e4 {[%clk 0:02:59]}  Bh7 {[%clk 0:02:32]} 10. f4 {[%clk 0:02:59]}  Nbd7 {[%clk 0:02:33]} 11. Nxd7 {[%clk 0:02:59]}  Nxd7 {[%clk 0:02:33]} 12. g4 {[%clk 0:02:59]}  Nf6 {[%clk 0:02:30]} 13. f5 {[%clk 0:02:56]}  exf5 {[%clk 0:02:31]} 14. exf5 {[%clk 0:02:55]}  Bd6 {[%clk 0:02:30]} 15. Ne2 {[%clk 0:02:53]}  Re8 {[%clk 0:02:30]} 16. Kh1 {[%clk 0:02:46]}  Qe7 {[%clk 0:02:22]} 17. Rf2 {[%clk 0:02:41]}  Qc7 {[%clk 0:02:14]} 18. Bf4 {[%clk 0:02:36]}  Re7 {[%clk 0:02:07]} 19. Bxd6 {[%clk 0:02:33]}  Qxd6 {[%clk 0:02:08]} 20. Qd2 {[%clk 0:02:33]}  Rae8 {[%clk 0:02:08]} 21. Rg1 {[%clk 0:02:29]}  Re3 {[%clk 0:02:05]} 22. c3 {[%clk 0:02:26]}  Nd7 {[%clk 0:02:01]} 23. Nf4 {[%clk 0:02:22]}  Nc5 {[%clk 0:01:46]} 24. b4 {[%clk 0:02:13]}  Nd7 {[%clk 0:01:26]} 25. d4 {[%clk 0:02:03]}  Nb6 {[%clk 0:01:18]} 26. Bf1 {[%clk 0:02:02]}  g5 {[%clk 0:01:14]} 27. Nh5 {[%clk 0:01:47]}  Nc4 {[%clk 0:01:04]} 28. Bxc4 {[%clk 0:01:45]}  Rxh3+ {[%clk 0:01:04]} 29. Kg2 {[%clk 0:01:43]}  Rh2+ {[%clk 0:00:41]} 30. Kf1 {[%clk 0:01:43]}  Rxf2+ {[%clk 0:00:39]} 31. Qxf2 {[%clk 0:01:40]}  dxc4 {[%clk 0:00:40]} 32. Kg2 {[%clk 0:01:37]}  Kh8 {[%clk 0:00:27]} 33. Re1 {[%clk 0:01:35]}  Qd5+ {[%clk 0:00:22]} 34. Kg3 {[%clk 0:01:33]}  Re4 {[%clk 0:00:18]} 35. Nf6 {[%clk 0:01:26]}  Qd6+ {[%clk 0:00:18]} 36. Kg2 {[%clk 0:01:14]}  Rxe1 {[%clk 0:00:18]} 37. Qxe1 {[%clk 0:01:14]}  Qxf6 {[%clk 0:00:17]} 38. Qe8+ {[%clk 0:01:14]}  Kg7 {[%clk 0:00:18]} 39. a4 {[%clk 0:01:07]}  h5 {[%clk 0:00:17]} 40. Qe5 {[%clk 0:01:03]}  Qxe5 {[%clk 0:00:16]} 41. dxe5 {[%clk 0:01:03]}  hxg4 {[%clk 0:00:16]} 42. f6+ {[%clk 0:01:03]}  Kf8 {[%clk 0:00:16]} 43. Kg3 {[%clk 0:01:03]}  Bf5 {[%clk 0:00:16]} 0-1


[Site "https://www.chess.com"]

[Event "Titled Tuesday Blitz March 07 Late 2023"]
[White "Souza, Gustavo Horokoski De"]
[Black "Stead, Kerry"]
[WhiteFideId "2146584"]
[BlackFideId "3202577"]
[WhiteElo "1859"]
[BlackElo "1997"]
[Result "1/2-1/2"]
[Round "05"]
[TimeControl "180+2"]
[Date "2023.03.07"]
[WhiteClock "0:00:05"]
[BlackClock "0:00:52"]

1. d4 {[%clk 0:02:33]}  c5 {[%clk 0:02:56]} 2. d5 {[%clk 0:02:32]}  f5 {[%clk 0:02:48]} 3. c4 {[%clk 0:02:31]}  g6 {[%clk 0:02:47]} 4. Nc3 {[%clk 0:02:29]}  Bg7 {[%clk 0:02:46]} 5. Qc2 {[%clk 0:02:14]}  d6 {[%clk 0:02:44]} 6. Nf3 {[%clk 0:02:11]}  Nd7 {[%clk 0:02:43]} 7. h4 {[%clk 0:02:09]}  Ngf6 {[%clk 0:02:42]} 8. h5 {[%clk 0:02:02]}  Ne5 {[%clk 0:02:34]} 9. h6 {[%clk 0:01:48]}  Bf8 {[%clk 0:02:31]} 10. Nxe5 {[%clk 0:01:44]}  dxe5 {[%clk 0:02:31]} 11. e4 {[%clk 0:01:44]}  f4 {[%clk 0:02:30]} 12. Be2 {[%clk 0:01:16]}  e6 {[%clk 0:02:29]} 13. b3 {[%clk 0:01:05]}  Bd7 {[%clk 0:02:23]} 14. Bb2 {[%clk 0:01:05]}  Bd6 {[%clk 0:02:19]} 15. O-O-O {[%clk 0:01:03]}  Qe7 {[%clk 0:02:14]} 16. dxe6 {[%clk 0:00:41]}  Qxe6 {[%clk 0:02:03]} 17. Rd2 {[%clk 0:00:33]}  O-O-O {[%clk 0:02:01]} 18. Rhd1 {[%clk 0:00:31]}  Bc6 {[%clk 0:02:00]} 19. f3 {[%clk 0:00:30]}  Bc7 {[%clk 0:01:59]} 20. Nd5 {[%clk 0:00:28]}  Ba5 {[%clk 0:01:52]} 21. Rd3 {[%clk 0:00:20]}  Nh5 {[%clk 0:01:48]} 22. Bc3 {[%clk 0:00:13]}  Bxc3 {[%clk 0:01:48]} 23. Qxc3 {[%clk 0:00:14]}  Ng3 {[%clk 0:01:44]} 24. Bf1 {[%clk 0:00:14]}  g5 {[%clk 0:01:42]} 25. Qa5 {[%clk 0:00:13]}  Bxd5 {[%clk 0:01:38]} 26. Rxd5 {[%clk 0:00:11]}  Rxd5 {[%clk 0:01:36]} 27. Rxd5 {[%clk 0:00:10]}  Nxf1 {[%clk 0:01:34]} 28. Rxc5+ {[%clk 0:00:10]}  Kb8 {[%clk 0:01:30]} 29. Qc7+ {[%clk 0:00:10]}  Ka8 {[%clk 0:01:29]} 30. Rxe5 {[%clk 0:00:10]}  Qc8 {[%clk 0:01:20]} 31. Qa5 {[%clk 0:00:07]}  Rd8 {[%clk 0:01:16]} 32. Rxg5 {[%clk 0:00:05]}  Ne3 {[%clk 0:01:13]} 33. Rg7 {[%clk 0:00:05]}  Rd1+ {[%clk 0:01:09]} 34. Kb2 {[%clk 0:00:05]}  a6 {[%clk 0:01:02]} 35. Qb6 {[%clk 0:00:05]}  Rd2+ {[%clk 0:00:58]} 36. Kc1 {[%clk 0:00:04]}  Rd1+ {[%clk 0:00:55]} 37. Kb2 {[%clk 0:00:04]}  Rd2+ {[%clk 0:00:56]} 38. Kc1 {[%clk 0:00:05]}  Rd1+ {[%clk 0:00:52]} 39. Kb2 {[%clk 0:00:05]} 1/2-1/2


[Site "https://www.chess.com"]

[Event "Titled Tuesday Blitz March 07 Late 2023"]
[White "Sai Han Thiha"]
[Black "Vifleemskaia, Svetlana"]
[WhiteFideId "13012290"]
[BlackFideId "4129490"]
[WhiteElo "1954"]
[BlackElo "1930"]
[Result "1-0"]
[Round "05"]
[TimeControl "180+2"]
[Date "2023.03.07"]
[WhiteClock "0:00:03"]
[BlackClock "0:00:01"]

1. d4 {[%clk 0:03:00]}  Nf6 {[%clk 0:02:59]} 2. c4 {[%clk 0:03:01]}  e6 {[%clk 0:02:59]} 3. Nf3 {[%clk 0:03:02]}  Bb4+ {[%clk 0:02:59]} 4. Bd2 {[%clk 0:03:02]}  Qe7 {[%clk 0:02:59]} 5. g3 {[%clk 0:03:02]}  Nc6 {[%clk 0:02:59]} 6. a3 {[%clk 0:03:00]}  Bxd2+ {[%clk 0:02:57]} 7. Qxd2 {[%clk 0:03:01]}  d6 {[%clk 0:02:58]} 8. Nc3 {[%clk 0:02:59]}  e5 {[%clk 0:02:58]} 9. d5 {[%clk 0:02:21]}  Nb8 {[%clk 0:02:53]} 10. b4 {[%clk 0:02:16]}  a5 {[%clk 0:02:52]} 11. Rb1 {[%clk 0:02:16]}  axb4 {[%clk 0:02:53]} 12. axb4 {[%clk 0:02:17]}  O-O {[%clk 0:02:47]} 13. e4 {[%clk 0:02:17]}  Na6 {[%clk 0:02:46]} 14. Bg2 {[%clk 0:02:05]}  c5 {[%clk 0:02:46]} 15. dxc6 {[%clk 0:02:02]}  bxc6 {[%clk 0:02:43]} 16. O-O {[%clk 0:02:03]}  Be6 {[%clk 0:02:39]} 17. Qe2 {[%clk 0:01:54]}  Rab8 {[%clk 0:02:34]} 18. b5 {[%clk 0:01:54]}  cxb5 {[%clk 0:02:21]} 19. cxb5 {[%clk 0:01:55]}  Nc5 {[%clk 0:02:21]} 20. Rfd1 {[%clk 0:01:50]}  Rb6 {[%clk 0:02:20]} 21. Nh4 {[%clk 0:01:48]}  g6 {[%clk 0:02:11]} 22. f4 {[%clk 0:01:45]}  Bg4 {[%clk 0:01:57]} 23. Bf3 {[%clk 0:01:44]}  Bxf3 {[%clk 0:01:57]} 24. Nxf3 {[%clk 0:01:35]}  exf4 {[%clk 0:01:51]} 25. gxf4 {[%clk 0:01:36]}  Ncxe4 {[%clk 0:01:50]} 26. Re1 {[%clk 0:01:09]}  d5 {[%clk 0:01:45]} 27. Nd4 {[%clk 0:01:05]}  Qa7 {[%clk 0:01:31]} 28. Ra1 {[%clk 0:00:59]}  Nxc3 {[%clk 0:00:56]} 29. Rxa7 {[%clk 0:00:58]}  Nxe2+ {[%clk 0:00:56]} 30. Rxe2 {[%clk 0:00:59]}  Ne4 {[%clk 0:00:50]} 31. Ra6 {[%clk 0:00:50]}  Rfb8 {[%clk 0:00:47]} 32. Rea2 {[%clk 0:00:21]}  Nc3 {[%clk 0:00:42]} 33. R2a3 {[%clk 0:00:21]}  Ne4 {[%clk 0:00:25]} 34. Rxb6 {[%clk 0:00:17]}  Rxb6 {[%clk 0:00:25]} 35. Ra6 {[%clk 0:00:18]}  Rb7 {[%clk 0:00:25]} 36. Kg2 {[%clk 0:00:15]}  Kf8 {[%clk 0:00:24]} 37. Kf3 {[%clk 0:00:06]}  Ke7 {[%clk 0:00:24]} 38. Rc6 {[%clk 0:00:06]}  Kd7 {[%clk 0:00:22]} 39. Rc2 {[%clk 0:00:07]}  Nd6 {[%clk 0:00:20]} 40. Rc5 {[%clk 0:00:06]}  Ra7 {[%clk 0:00:14]} 41. Rxd5 {[%clk 0:00:06]}  Ra3+ {[%clk 0:00:14]} 42. Ke2 {[%clk 0:00:05]}  Ra2+ {[%clk 0:00:14]} 43. Kd3 {[%clk 0:00:06]}  Rxh2 {[%clk 0:00:12]} 44. Rc5 {[%clk 0:00:03]}  Rb2 {[%clk 0:00:10]} 45. Kc3 {[%clk 0:00:03]}  Rb1 {[%clk 0:00:09]} 46. Kc2 {[%clk 0:00:03]}  Nxb5 {[%clk 0:00:06]} 47. Nxb5 {[%clk 0:00:03]}  Rf1 {[%clk 0:00:05]} 48. Nc3 {[%clk 0:00:03]}  Rxf4 {[%clk 0:00:04]} 49. Ra5 {[%clk 0:00:04]}  Ke6 {[%clk 0:00:04]} 50. Kd3 {[%clk 0:00:03]}  Rf3+ {[%clk 0:00:02]} 51. Kd4 {[%clk 0:00:03]}  h5 {[%clk 0:00:02]} 52. Ra6+ {[%clk 0:00:03]}  Ke7 {[%clk 0:00:01]} 53. Ne4 {[%clk 0:00:03]} 1-0


[Site "https://www.chess.com"]

[Event "Titled Tuesday Blitz March 07 Late 2023"]
[White "Romkachess"]
[Black "Pesotskiy, Mikhail"]
[BlackFideId "34164453"]
[WhiteElo "2493"]
[BlackElo "2131"]
[Result "1-0"]
[Round "05"]
[TimeControl "180+2"]
[Date "2023.03.07"]
[WhiteClock "0:00:12"]
[BlackClock "0:00:15"]

1. e4 {[%clk 0:03:00]}  e6 {[%clk 0:03:00]} 2. d4 {[%clk 0:02:59]}  d5 {[%clk 0:03:00]} 3. Nc3 {[%clk 0:02:59]}  Bb4 {[%clk 0:03:00]} 4. a3 {[%clk 0:02:48]}  Bxc3+ {[%clk 0:02:58]} 5. bxc3 {[%clk 0:02:49]}  dxe4 {[%clk 0:02:59]} 6. Qg4 {[%clk 0:02:48]}  Nf6 {[%clk 0:02:58]} 7. Qxg7 {[%clk 0:02:49]}  Rg8 {[%clk 0:02:59]} 8. Qh6 {[%clk 0:02:49]}  Rg6 {[%clk 0:03:00]} 9. Qe3 {[%clk 0:02:49]}  Nbd7 {[%clk 0:02:57]} 10. g3 {[%clk 0:02:49]}  b6 {[%clk 0:02:55]} 11. Bg2 {[%clk 0:02:50]}  Bb7 {[%clk 0:02:55]} 12. Bd2 {[%clk 0:02:36]}  Qe7 {[%clk 0:02:54]} 13. Nh3 {[%clk 0:02:31]}  O-O-O {[%clk 0:02:53]} 14. Nf4 {[%clk 0:02:30]}  Rgg8 {[%clk 0:02:53]} 15. O-O {[%clk 0:02:16]}  e5 {[%clk 0:02:53]} 16. Nh3 {[%clk 0:01:59]}  Ng4 {[%clk 0:02:23]} 17. Qe2 {[%clk 0:01:48]}  f5 {[%clk 0:02:22]} 18. f3 {[%clk 0:01:29]}  exf3 {[%clk 0:01:53]} 19. Bxf3 {[%clk 0:01:29]}  e4 {[%clk 0:01:53]} 20. Bg2 {[%clk 0:01:28]}  e3 {[%clk 0:01:39]} 21. Bxb7+ {[%clk 0:01:27]}  Kxb7 {[%clk 0:01:40]} 22. Qf3+ {[%clk 0:01:27]}  Kb8 {[%clk 0:01:28]} 23. Rae1 {[%clk 0:01:21]}  Rde8 {[%clk 0:01:22]} 24. Re2 {[%clk 0:00:25]}  Qxa3 {[%clk 0:00:52]} 25. Be1 {[%clk 0:00:21]}  Rgf8 {[%clk 0:00:38]} 26. Nf4 {[%clk 0:00:18]}  Ndf6 {[%clk 0:00:31]} 27. Qc6 {[%clk 0:00:15]}  Ne4 {[%clk 0:00:23]} 28. c4 {[%clk 0:00:14]}  Qd6 {[%clk 0:00:23]} 29. Qa4 {[%clk 0:00:13]}  Nd2 {[%clk 0:00:19]} 30. Bxd2 {[%clk 0:00:13]}  exd2 {[%clk 0:00:20]} 31. Rxd2 {[%clk 0:00:14]}  Re3 {[%clk 0:00:18]} 32. Ra1 {[%clk 0:00:13]}  a5 {[%clk 0:00:17]} 33. c5 {[%clk 0:00:13]}  Qc6 {[%clk 0:00:15]} 34. Qxc6 {[%clk 0:00:12]} 1-0


[Site "https://www.chess.com"]

[Event "Titled Tuesday Blitz March 07 Late 2023"]
[White "Eggleston, Thomas A"]
[Black "Estrada Nieto, Julian"]
[WhiteFideId "412139"]
[BlackFideId "5101018"]
[WhiteElo "2155"]
[BlackElo "2176"]
[Result "1-0"]
[Round "05"]
[TimeControl "180+2"]
[Date "2023.03.07"]
[WhiteClock "0:00:12"]
[BlackClock "0:00:04"]

1. e4 {[%clk 0:03:00]}  e5 {[%clk 0:02:59]} 2. f4 {[%clk 0:02:59]}  d5 {[%clk 0:02:59]} 3. exd5 {[%clk 0:02:58]}  exf4 {[%clk 0:02:59]} 4. Nf3 {[%clk 0:02:57]}  Nf6 {[%clk 0:02:59]} 5. c4 {[%clk 0:02:55]}  Bd6 {[%clk 0:03:00]} 6. d4 {[%clk 0:02:55]}  O-O {[%clk 0:03:00]} 7. Be2 {[%clk 0:02:52]}  c5 {[%clk 0:02:52]} 8. dxc6 {[%clk 0:02:45]}  Nxc6 {[%clk 0:02:52]} 9. c5 {[%clk 0:02:44]}  Bc7 {[%clk 0:02:49]} 10. Nc3 {[%clk 0:02:44]}  Bg4 {[%clk 0:02:48]} 11. d5 {[%clk 0:02:35]}  Bxf3 {[%clk 0:02:48]} 12. Bxf3 {[%clk 0:02:23]}  Re8+ {[%clk 0:02:48]} 13. Kf2 {[%clk 0:02:22]}  Ne5 {[%clk 0:02:38]} 14. d6 {[%clk 0:02:17]}  Bb8 {[%clk 0:02:18]} 15. Bxf4 {[%clk 0:02:13]}  Qa5 {[%clk 0:02:02]} 16. Qd4 {[%clk 0:01:47]}  Neg4+ {[%clk 0:01:32]} 17. Kg3 {[%clk 0:01:41]}  Nh6 {[%clk 0:01:29]} 18. Bxh6 {[%clk 0:01:31]}  gxh6 {[%clk 0:01:25]} 19. Rhe1 {[%clk 0:01:20]}  Bxd6+ {[%clk 0:00:38]} 20. cxd6 {[%clk 0:01:14]}  Qg5+ {[%clk 0:00:36]} 21. Kf2 {[%clk 0:01:06]}  Red8 {[%clk 0:00:34]} 22. Nd5 {[%clk 0:00:52]}  Nxd5 {[%clk 0:00:27]} 23. Qxd5 {[%clk 0:00:50]}  Qf4 {[%clk 0:00:20]} 24. d7 {[%clk 0:00:44]}  Qc7 {[%clk 0:00:10]} 25. Rad1 {[%clk 0:00:40]}  Qb6+ {[%clk 0:00:09]} 26. Kf1 {[%clk 0:00:39]}  Qxb2 {[%clk 0:00:08]} 27. Re4 {[%clk 0:00:35]}  Kh8 {[%clk 0:00:07]} 28. Red4 {[%clk 0:00:28]}  Rab8 {[%clk 0:00:04]} 29. Qxf7 {[%clk 0:00:25]}  Qb5+ {[%clk 0:00:03]} 30. Kg1 {[%clk 0:00:24]}  Qg5 {[%clk 0:00:04]} 31. Rg4 {[%clk 0:00:19]}  Qe5 {[%clk 0:00:03]} 32. Re4 {[%clk 0:00:13]}  Qc5+ {[%clk 0:00:03]} 33. Kh1 {[%clk 0:00:13]}  Qc3 {[%clk 0:00:03]} 34. Re8+ {[%clk 0:00:12]}  Rxe8 {[%clk 0:00:02]} 35. dxe8=Q+ {[%clk 0:00:12]}  Rxe8 {[%clk 0:00:03]} 36. Qxe8+ {[%clk 0:00:12]}  Kg7 {[%clk 0:00:03]} 37. Qd7+ {[%clk 0:00:12]}  Kf6 {[%clk 0:00:03]} 38. Qd6+ {[%clk 0:00:12]}  Kg5 {[%clk 0:00:03]} 39. Qd5+ {[%clk 0:00:12]}  Kf4 {[%clk 0:00:03]} 40. Qd4+ {[%clk 0:00:12]}  Qxd4 {[%clk 0:00:03]} 41. Rxd4+ {[%clk 0:00:12]}  Ke3 {[%clk 0:00:04]} 42. Rd7 {[%clk 0:00:12]}  b5 {[%clk 0:00:04]} 43. Rxa7 {[%clk 0:00:12]}  b4 {[%clk 0:00:04]} 44. Rb7 {[%clk 0:00:12]} 1-0


[Site "https://www.chess.com"]

[Event "Titled Tuesday Blitz March 07 Late 2023"]
[White "Leonte, Sebastian-Marian"]
[Black "Erzhanov, Arman"]
[WhiteFideId "1268767"]
[BlackFideId "4138821"]
[WhiteElo "2292"]
[BlackElo "2138"]
[Result "0-1"]
[Round "05"]
[TimeControl "180+2"]
[Date "2023.03.07"]
[WhiteClock "0:00:04"]
[BlackClock "0:00:28"]

1. e4 {[%clk 0:03:00]}  d6 {[%clk 0:02:46]} 2. d4 {[%clk 0:02:58]}  Nf6 {[%clk 0:02:47]} 3. Nc3 {[%clk 0:02:58]}  c6 {[%clk 0:02:47]} 4. a4 {[%clk 0:02:56]}  e5 {[%clk 0:02:46]} 5. Nf3 {[%clk 0:02:48]}  Nbd7 {[%clk 0:02:46]} 6. Be2 {[%clk 0:02:42]}  Be7 {[%clk 0:02:46]} 7. O-O {[%clk 0:02:42]}  O-O {[%clk 0:02:47]} 8. h3 {[%clk 0:02:38]}  Re8 {[%clk 0:02:47]} 9. Be3 {[%clk 0:02:37]}  Bf8 {[%clk 0:02:48]} 10. dxe5 {[%clk 0:02:08]}  dxe5 {[%clk 0:02:47]} 11. Bc4 {[%clk 0:02:07]}  h6 {[%clk 0:02:44]} 12. Qe2 {[%clk 0:02:04]}  Qc7 {[%clk 0:02:44]} 13. Rfd1 {[%clk 0:02:02]}  Nc5 {[%clk 0:02:44]} 14. Nd2 {[%clk 0:01:53]}  Be6 {[%clk 0:02:36]} 15. b3 {[%clk 0:01:42]}  Rad8 {[%clk 0:02:22]} 16. Bxc5 {[%clk 0:01:22]}  Bxc5 {[%clk 0:02:21]} 17. Nf1 {[%clk 0:01:20]}  Bd4 {[%clk 0:02:15]} 18. Qf3 {[%clk 0:01:07]}  Bxc4 {[%clk 0:02:11]} 19. bxc4 {[%clk 0:01:08]}  Bxc3 {[%clk 0:01:59]} 20. Qxc3 {[%clk 0:01:09]}  Nxe4 {[%clk 0:01:59]} 21. Qe3 {[%clk 0:01:07]}  Nd6 {[%clk 0:01:47]} 22. Qxa7 {[%clk 0:00:55]}  Nxc4 {[%clk 0:01:46]} 23. Qc5 {[%clk 0:00:54]}  Nb6 {[%clk 0:01:36]} 24. a5 {[%clk 0:00:49]}  Nd7 {[%clk 0:01:26]} 25. Qb4 {[%clk 0:00:33]}  Ra8 {[%clk 0:01:20]} 26. Ne3 {[%clk 0:00:32]}  g6 {[%clk 0:01:02]} 27. Nc4 {[%clk 0:00:26]}  Nf6 {[%clk 0:00:55]} 28. Nd6 {[%clk 0:00:23]}  Re7 {[%clk 0:00:53]} 29. Rd2 {[%clk 0:00:16]}  Nd5 {[%clk 0:00:52]} 30. Qc5 {[%clk 0:00:15]}  b6 {[%clk 0:00:43]} 31. axb6 {[%clk 0:00:04]}  Rxa1+ {[%clk 0:00:43]} 32. Kh2 {[%clk 0:00:05]}  Qxb6 {[%clk 0:00:39]} 33. Rxd5 {[%clk 0:00:05]}  Qxc5 {[%clk 0:00:39]} 34. Rxc5 {[%clk 0:00:05]}  Ra6 {[%clk 0:00:32]} 35. Nc4 {[%clk 0:00:05]}  f6 {[%clk 0:00:31]} 36. Na5 {[%clk 0:00:04]}  Rc7 {[%clk 0:00:28]} 37. Nb3 {[%clk 0:00:04]}  Kf7 {[%clk 0:00:28]} 0-1


[Site "https://www.chess.com"]